[Event "Late-Titled-Tuesday-Blitz-January-23-2024"]
[Site "Chess.com"]
[Date "2024.01.23"]
[Round "4"]
[White "greekplayer1"]
[Black "Atousa"]
[Result "1-0"]
[WhiteElo "2705"]
[BlackElo "2474"]
[TimeControl "180+1"]
[EndTime "14:36:24 PST"]
[Termination "greekplayer1 won by resignation"]

1. d4 {[%clk 0:02:55.6]} 1... Nf6 {[%clk 0:02:59.8]} 2. Nf3 {[%clk 0:02:43]}
2... d5 {[%clk 0:02:59.1]} 3. g3 {[%clk 0:02:42.7]} 3... e6 {[%clk 0:02:57.1]}
4. Bg2 {[%clk 0:02:43.1]} 4... c5 {[%clk 0:02:57.1]} 5. O-O {[%clk 0:02:44]}
5... cxd4 {[%clk 0:02:57.4]} 6. Nxd4 {[%clk 0:02:44]} 6... Be7 {[%clk
0:02:56.5]} 7. c4 {[%clk 0:02:42.2]} 7... Nc6 {[%clk 0:02:46.4]} 8. Nc3 {[%clk
0:02:42]} 8... O-O {[%clk 0:02:41.8]} 9. Bf4 {[%clk 0:02:37.9]} 9... Bc5 {[%clk
0:02:25.2]} 10. Be3 {[%clk 0:02:25.7]} 10... Nxd4 {[%clk 0:02:07.7]} 11. Bxd4
{[%clk 0:02:26.6]} 11... Bxd4 {[%clk 0:02:08.2]} 12. Qxd4 {[%clk 0:02:25.5]}
12... dxc4 {[%clk 0:02:08.8]} 13. Qxc4 {[%clk 0:02:26.4]} 13... Qe7 {[%clk
0:01:58.7]} 14. Rfd1 {[%clk 0:02:24.6]} 14... a6 {[%clk 0:01:57.8]} 15. Rac1
{[%clk 0:02:23]} 15... b5 {[%clk 0:01:54.8]} 16. Qh4 {[%clk 0:02:12.5]} 16...
Bb7 {[%clk 0:01:54.2]} 17. e4 {[%clk 0:02:12.6]} 17... e5 {[%clk 0:00:47.4]} 18.
g4 {[%clk 0:02:06]} 18... h6 {[%clk 0:00:44.2]} 19. h3 {[%clk 0:01:54.1]} 19...
Rfd8 {[%clk 0:00:42.6]} 20. Qg3 {[%clk 0:01:51]} 20... Rd4 {[%clk 0:00:35]} 21.
Rxd4 {[%clk 0:01:45.7]} 21... exd4 {[%clk 0:00:35]} 22. Nd5 {[%clk 0:01:46.6]}
22... Nxd5 {[%clk 0:00:28]} 23. exd5 {[%clk 0:01:47.5]} 23... Rc8 {[%clk
0:00:25.5]} 24. Rd1 {[%clk 0:01:35.5]} 24... Qf6 {[%clk 0:00:18.4]} 25. Qd3
{[%clk 0:01:32.3]} 25... Rd8 {[%clk 0:00:05.8]} 26. Qxd4 {[%clk 0:01:32.3]}
26... Qxd4 {[%clk 0:00:05.7]} 27. Rxd4 {[%clk 0:01:33.2]} 27... Kf8 {[%clk
0:00:06]} 28. f4 {[%clk 0:01:30.4]} 28... Ke7 {[%clk 0:00:06.1]} 29. d6+ {[%clk
0:01:31]} 29... Kd7 {[%clk 0:00:02.2]} 30. Bxb7 {[%clk 0:01:30.8]} 1-0

[Event "Late-Titled-Tuesday-Blitz-January-23-2024"]
[Site "Chess.com"]
[Date "2024.01.23"]
[Round "4"]
[White "maurovargas01"]
[Black "VitaliyChayka"]
[Result "0-1"]
[WhiteElo "1838"]
[BlackElo "2441"]
[TimeControl "180+1"]
[EndTime "14:36:30 PST"]
[Termination "VitaliyChayka won by checkmate"]

1. e4 {[%clk 0:03:00.9]} 1... d6 {[%clk 0:02:55.2]} 2. f4 {[%clk 0:03:00.6]}
2... c5 {[%clk 0:02:50.8]} 3. Nf3 {[%clk 0:03:00.7]} 3... g6 {[%clk 0:02:50.9]}
4. Bb5+ {[%clk 0:03:00.1]} 4... Bd7 {[%clk 0:02:48.7]} 5. Bxd7+ {[%clk
0:02:59.9]} 5... Qxd7 {[%clk 0:02:49.6]} 6. d3 {[%clk 0:03:00.8]} 6... Nc6
{[%clk 0:02:48.5]} 7. O-O {[%clk 0:03:00.5]} 7... Bg7 {[%clk 0:02:48.5]} 8. c3
{[%clk 0:02:59.6]} 8... e6 {[%clk 0:02:48.5]} 9. Na3 {[%clk 0:02:59.3]} 9...
Nge7 {[%clk 0:02:47.5]} 10. Nc4 {[%clk 0:02:58.8]} 10... b5 {[%clk 0:02:44.2]}
11. Ne3 {[%clk 0:02:55.9]} 11... d5 {[%clk 0:02:42.9]} 12. e5 {[%clk 0:02:55.5]}
12... O-O {[%clk 0:02:42]} 13. d4 {[%clk 0:02:49.4]} 13... cxd4 {[%clk
0:02:24.7]} 14. Nxd4 {[%clk 0:02:49.2]} 14... Nxd4 {[%clk 0:02:18.9]} 15. Qxd4
{[%clk 0:02:45.1]} 15... Nc6 {[%clk 0:02:16.2]} 16. Qd1 {[%clk 0:02:39.6]} 16...
d4 {[%clk 0:02:15]} 17. Ng4 {[%clk 0:02:36.1]} 17... Rfd8 {[%clk 0:02:09.3]} 18.
Qe1 {[%clk 0:02:30.5]} 18... h5 {[%clk 0:02:02.2]} 19. Nf6+ {[%clk 0:02:27.6]}
19... Bxf6 {[%clk 0:02:02.3]} 20. exf6 {[%clk 0:02:28.5]} 20... dxc3 {[%clk
0:01:59.7]} 21. bxc3 {[%clk 0:02:21.9]} 21... Qd5 {[%clk 0:01:49.8]} 22. Qh4
{[%clk 0:02:10.2]} 22... Qf5 {[%clk 0:01:48.3]} 23. Be3 {[%clk 0:01:47.2]} 23...
Rd3 {[%clk 0:01:46.2]} 24. Rae1 {[%clk 0:01:25.9]} 24... Rad8 {[%clk 0:01:45.3]}
25. Bxa7 {[%clk 0:01:16.5]} 25... Nxa7 {[%clk 0:01:41.9]} 26. Re5 {[%clk
0:01:15.5]} 26... Qg4 {[%clk 0:01:38.5]} 27. Qf2 {[%clk 0:01:12.8]} 27... Rd2
{[%clk 0:01:36.6]} 28. Rg5 {[%clk 0:01:08.6]} 28... Rxf2 {[%clk 0:01:32]} 29.
Rxg4 {[%clk 0:01:02.5]} 29... Rxf1+ {[%clk 0:01:30.6]} 30. Kxf1 {[%clk
0:01:02.7]} 30... hxg4 {[%clk 0:01:30.8]} 31. Kf2 {[%clk 0:01:02.3]} 31... Rd2+
{[%clk 0:01:29.1]} 32. Kg3 {[%clk 0:01:03.2]} 32... Rxa2 {[%clk 0:01:28.6]} 33.
Kxg4 {[%clk 0:01:02.4]} 33... Rc2 {[%clk 0:01:27.7]} 34. g3 {[%clk 0:01:00.8]}
34... Rxc3 {[%clk 0:01:27.7]} 35. h4 {[%clk 0:01:00.6]} 35... b4 {[%clk
0:01:27.7]} 36. h5 {[%clk 0:01:00.8]} 36... gxh5+ {[%clk 0:01:27.9]} 37. Kxh5
{[%clk 0:01:00.5]} 37... b3 {[%clk 0:01:28.6]} 38. g4 {[%clk 0:01:00.5]} 38...
Rh3+ {[%clk 0:01:25.8]} 39. Kg5 {[%clk 0:01:00.3]} 39... b2 {[%clk 0:01:25.5]}
40. f5 {[%clk 0:00:59.9]} 40... exf5 {[%clk 0:01:24.8]} 41. Kxf5 {[%clk
0:00:58.7]} 41... b1=Q+ {[%clk 0:01:24.1]} 42. Kg5 {[%clk 0:00:57.7]} 42... Qb5+
{[%clk 0:01:20.9]} 43. Kf4 {[%clk 0:00:58.6]} 43... Qc4+ {[%clk 0:01:17.5]} 44.
Kg5 {[%clk 0:00:58.4]} 44... Qd5+ {[%clk 0:01:17.2]} 45. Kf4 {[%clk 0:00:58]}
45... Rf3# {[%clk 0:01:16.2]} 0-1

[Event "Late-Titled-Tuesday-Blitz-January-23-2024"]
[Site "Chess.com"]
[Date "2024.01.23"]
[Round "4"]
[White "Pawngobblerx2000"]
[Black "AlexOstrovskiy"]
[Result "1-0"]
[WhiteElo "2571"]
[BlackElo "2768"]
[TimeControl "180+1"]
[EndTime "14:36:33 PST"]
[Termination "Pawngobblerx2000 won on time"]

1. c4 {[%clk 0:02:57.8]} 1... b6 {[%clk 0:02:59.8]} 2. Nc3 {[%clk 0:02:56.2]}
2... Bb7 {[%clk 0:03:00.7]} 3. e4 {[%clk 0:02:56.1]} 3... e5 {[%clk 0:03:00.2]}
4. Nf3 {[%clk 0:02:55.3]} 4... Nc6 {[%clk 0:02:58.1]} 5. g3 {[%clk 0:02:51.4]}
5... Bc5 {[%clk 0:02:55.7]} 6. Bg2 {[%clk 0:02:51.5]} 6... d6 {[%clk 0:02:55.6]}
7. O-O {[%clk 0:02:51.3]} 7... Nge7 {[%clk 0:02:54.3]} 8. d3 {[%clk 0:02:51]}
8... O-O {[%clk 0:02:54.2]} 9. a3 {[%clk 0:02:47.2]} 9... a5 {[%clk 0:02:53.5]}
10. Nd2 {[%clk 0:02:43.2]} 10... f5 {[%clk 0:02:43.9]} 11. exf5 {[%clk
0:02:33.1]} 11... Nxf5 {[%clk 0:02:41.5]} 12. Nde4 {[%clk 0:02:32.3]} 12... Bd4
{[%clk 0:02:22.5]} 13. Bg5 {[%clk 0:02:30.2]} 13... Qd7 {[%clk 0:02:22.3]} 14.
Bh3 {[%clk 0:02:23.7]} 14... Qf7 {[%clk 0:02:13.3]} 15. Nd5 {[%clk 0:02:17.7]}
15... Nd8 {[%clk 0:01:03.7]} 16. Ndf6+ {[%clk 0:01:34.3]} 16... gxf6 {[%clk
0:01:02]} 17. Nxf6+ {[%clk 0:01:34.5]} 17... Kh8 {[%clk 0:00:59.6]} 18. Bxf5
{[%clk 0:01:34.5]} 18... Ne6 {[%clk 0:00:21.9]} 19. h4 {[%clk 0:01:31]} 19...
Nxg5 {[%clk 0:00:13]} 20. hxg5 {[%clk 0:01:31.9]} 20... e4 {[%clk 0:00:10.4]}
21. Bxe4 {[%clk 0:01:29.8]} 21... Bxe4 {[%clk 0:00:06.9]} 22. Nxe4 {[%clk
0:01:30.7]} 22... Bxb2 {[%clk 0:00:06.6]} 23. Ra2 {[%clk 0:01:28.3]} 23... Bd4
{[%clk 0:00:06.9]} 24. Qg4 {[%clk 0:01:26.8]} 24... Rae8 {[%clk 0:00:06.9]} 25.
Kg2 {[%clk 0:01:25.5]} 25... Qf5 {[%clk 0:00:03.8]} 26. Qh5 {[%clk 0:01:17.2]}
26... Qg6 {[%clk 0:00:02]} 27. Qh4 {[%clk 0:01:14.2]} 1-0

[Event "Late-Titled-Tuesday-Blitz-January-23-2024"]
[Site "Chess.com"]
[Date "2024.01.23"]
[Round "4"]
[White "Mikhal867"]
[Black "YurasovMat-2012"]
[Result "0-1"]
[WhiteElo "2421"]
[BlackElo "2590"]
[TimeControl "180+1"]
[EndTime "14:36:33 PST"]
[Termination "YurasovMat-2012 won by resignation"]

1. d4 {[%clk 0:03:00.9]} 1... d5 {[%clk 0:02:59.5]} 2. c4 {[%clk 0:03:00.4]}
2... c6 {[%clk 0:02:59.1]} 3. Nf3 {[%clk 0:02:59.8]} 3... Nf6 {[%clk 0:02:59.4]}
4. Nc3 {[%clk 0:02:59.4]} 4... dxc4 {[%clk 0:02:59.7]} 5. a4 {[%clk 0:02:59]}
5... Bf5 {[%clk 0:02:59.4]} 6. Ne5 {[%clk 0:02:59]} 6... e6 {[%clk 0:02:57]} 7.
f3 {[%clk 0:02:58.9]} 7... Bb4 {[%clk 0:02:57.5]} 8. e4 {[%clk 0:02:59.1]} 8...
Bxe4 {[%clk 0:02:57.9]} 9. fxe4 {[%clk 0:02:54.5]} 9... Nxe4 {[%clk 0:02:58.8]}
10. Bd2 {[%clk 0:02:54.3]} 10... Qxd4 {[%clk 0:02:58.4]} 11. Nxe4 {[%clk
0:02:53.2]} 11... Qxe4+ {[%clk 0:02:58.5]} 12. Qe2 {[%clk 0:02:53.4]} 12...
Bxd2+ {[%clk 0:02:58.9]} 13. Kxd2 {[%clk 0:02:53.7]} 13... Qd5+ {[%clk
0:02:59.5]} 14. Kc2 {[%clk 0:02:49.2]} 14... Na6 {[%clk 0:02:59.3]} 15. Rd1
{[%clk 0:02:40.2]} 15... Qa5 {[%clk 0:02:57.6]} 16. Qxc4 {[%clk 0:02:28.7]}
16... Qxe5 {[%clk 0:02:56.8]} 17. Bd3 {[%clk 0:02:24]} 17... O-O {[%clk
0:02:54.7]} 18. Rhe1 {[%clk 0:02:22.8]} 18... Qg5 {[%clk 0:02:53.6]} 19. h4
{[%clk 0:02:16.9]} 19... Qe7 {[%clk 0:02:47.9]} 20. Kb1 {[%clk 0:02:02.8]} 20...
Rfd8 {[%clk 0:02:46.2]} 21. h5 {[%clk 0:01:58.6]} 21... Nb4 {[%clk 0:02:38.5]}
22. Be4 {[%clk 0:01:52.5]} 22... a5 {[%clk 0:02:37.4]} 23. h6 {[%clk 0:01:51.6]}
23... Qf6 {[%clk 0:02:28]} 24. hxg7 {[%clk 0:01:44.3]} 24... Qxg7 {[%clk
0:02:26.2]} 25. Rxd8+ {[%clk 0:01:37.2]} 25... Rxd8 {[%clk 0:02:27.1]} 26. Rh1
{[%clk 0:01:37.3]} 26... h6 {[%clk 0:02:20.8]} 27. Qc5 {[%clk 0:01:36.5]} 27...
Rd2 {[%clk 0:02:17.9]} 28. Qc3 {[%clk 0:01:29.5]} 28... Qxc3 {[%clk 0:02:15.6]}
29. bxc3 {[%clk 0:01:29.4]} 29... Nd5 {[%clk 0:02:16]} 30. Bxd5 {[%clk
0:01:27.8]} 30... cxd5 {[%clk 0:02:15.3]} 31. Rxh6 {[%clk 0:01:26.8]} 31... Rxg2
{[%clk 0:02:14.3]} 32. Rh4 {[%clk 0:01:22.3]} 32... Kg7 {[%clk 0:02:13.3]} 33.
c4 {[%clk 0:01:22.4]} 33... dxc4 {[%clk 0:02:11.4]} 34. Rxc4 {[%clk 0:01:21.8]}
34... Rg5 {[%clk 0:02:10.7]} 35. Rc7 {[%clk 0:01:19.7]} 35... b5 {[%clk
0:02:09.8]} 36. axb5 {[%clk 0:01:19.5]} 36... Rxb5+ {[%clk 0:02:10]} 37. Kc2
{[%clk 0:01:20.1]} 37... a4 {[%clk 0:02:09.4]} 38. Ra7 {[%clk 0:01:19.1]} 38...
Rb4 {[%clk 0:02:09.4]} 39. Kc3 {[%clk 0:01:19.5]} 39... Rh4 {[%clk 0:02:08.7]}
40. Kd3 {[%clk 0:01:19.6]} 40... a3 {[%clk 0:02:07.9]} 41. Ke2 {[%clk
0:01:18.5]} 41... a2 {[%clk 0:02:07.2]} 42. Kf3 {[%clk 0:01:18.6]} 42... Rh2
{[%clk 0:02:04]} 43. Kg3 {[%clk 0:01:18.9]} 43... Rb2 {[%clk 0:02:03]} 44. Kg4
{[%clk 0:01:18.6]} 44... Kf6 {[%clk 0:02:03.1]} 45. Kf4 {[%clk 0:01:18.3]} 45...
Kg6 {[%clk 0:02:01.8]} 46. Kg4 {[%clk 0:01:18.5]} 46... f5+ {[%clk 0:02:00.5]}
47. Kf4 {[%clk 0:01:18.8]} 47... Kf6 {[%clk 0:02:01.2]} 48. Kf3 {[%clk
0:01:14.8]} 48... e5 {[%clk 0:01:59.4]} 49. Ke3 {[%clk 0:01:14.8]} 49... f4+
{[%clk 0:01:57.5]} 50. Ke4 {[%clk 0:01:10.7]} 50... Rb4+ {[%clk 0:01:55.2]} 51.
Kf3 {[%clk 0:01:09.1]} 51... Rb3+ {[%clk 0:01:54.5]} 52. Ke4 {[%clk 0:01:05.1]}
52... Re3+ {[%clk 0:01:55.1]} 53. Kd5 {[%clk 0:01:05.5]} 53... Re2 {[%clk
0:01:55.4]} 54. Ra8 {[%clk 0:01:03.4]} 54... Kf5 {[%clk 0:01:53.2]} 55. Rf8+
{[%clk 0:01:02.3]} 55... Kg4 {[%clk 0:01:53]} 56. Ra8 {[%clk 0:01:02.4]} 56...
f3 {[%clk 0:01:51.7]} 57. Kc4 {[%clk 0:01:02.5]} 57... f2 {[%clk 0:01:51.1]} 0-1

[Event "Late-Titled-Tuesday-Blitz-January-23-2024"]
[Site "Chess.com"]
[Date "2024.01.23"]
[Round "4"]
[White "Alexei_Gubajdullin"]
[Black "platy3"]
[Result "0-1"]
[WhiteElo "2600"]
[BlackElo "2864"]
[TimeControl "180+1"]
[EndTime "14:36:36 PST"]
[Termination "platy3 won by resignation"]

1. Nf3 {[%clk 0:02:59.1]} 1... Nf6 {[%clk 0:02:59]} 2. g3 {[%clk 0:02:59.3]}
2... b5 {[%clk 0:02:59]} 3. Bg2 {[%clk 0:02:59.4]} 3... Bb7 {[%clk 0:02:59.5]}
4. O-O {[%clk 0:02:59.5]} 4... e6 {[%clk 0:03:00.1]} 5. b3 {[%clk 0:02:59]} 5...
a5 {[%clk 0:02:59.2]} 6. a4 {[%clk 0:02:57.1]} 6... b4 {[%clk 0:02:58.6]} 7. Bb2
{[%clk 0:02:57.2]} 7... Be7 {[%clk 0:02:59]} 8. d3 {[%clk 0:02:52.9]} 8... O-O
{[%clk 0:02:58.9]} 9. e4 {[%clk 0:02:52.8]} 9... d5 {[%clk 0:02:58.5]} 10. e5
{[%clk 0:02:52.7]} 10... Nfd7 {[%clk 0:02:58.8]} 11. h4 {[%clk 0:02:51.7]} 11...
c5 {[%clk 0:02:59]} 12. Nbd2 {[%clk 0:02:51.2]} 12... Nc6 {[%clk 0:02:59.5]} 13.
Re1 {[%clk 0:02:51]} 13... Qc7 {[%clk 0:02:59.6]} 14. Qe2 {[%clk 0:02:51.1]}
14... Rfc8 {[%clk 0:02:59.3]} 15. h5 {[%clk 0:02:50.5]} 15... h6 {[%clk
0:02:59.1]} 16. Nh2 {[%clk 0:02:49.1]} 16... Nd4 {[%clk 0:02:56]} 17. Bxd4
{[%clk 0:02:43.2]} 17... cxd4 {[%clk 0:02:56.9]} 18. Rac1 {[%clk 0:02:42.5]}
18... Qb6 {[%clk 0:02:39.1]} 19. Ng4 {[%clk 0:02:39.8]} 19... Rc6 {[%clk
0:02:37.4]} 20. Nf3 {[%clk 0:02:38.5]} 20... Rac8 {[%clk 0:02:37.2]} 21. Qd2
{[%clk 0:02:38.2]} 21... Bf8 {[%clk 0:02:36.5]} 22. Re2 {[%clk 0:02:26.3]} 22...
Ba6 {[%clk 0:02:36.5]} 23. Ne1 {[%clk 0:02:23.1]} 23... Rc3 {[%clk 0:02:31.4]}
24. Rd1 {[%clk 0:02:22.6]} 24... Be7 {[%clk 0:02:24.3]} 25. f4 {[%clk
0:02:16.5]} 25... Nc5 {[%clk 0:02:16.1]} 26. Rf2 {[%clk 0:02:12.3]} 26... Qd8
{[%clk 0:02:11.2]} 27. Qe2 {[%clk 0:02:10.8]} 27... Qd7 {[%clk 0:02:07.6]} 28.
Nh2 {[%clk 0:02:06.6]} 28... Nxb3 {[%clk 0:01:30]} 29. cxb3 {[%clk 0:02:06.1]}
29... Rxb3 {[%clk 0:01:30.9]} 30. f5 {[%clk 0:02:03.7]} 30... Bg5 {[%clk
0:01:27.5]} 31. fxe6 {[%clk 0:01:57]} 31... fxe6 {[%clk 0:01:27.3]} 32. Kh1
{[%clk 0:01:48.6]} 32... Rbc3 {[%clk 0:01:26.9]} 33. Bh3 {[%clk 0:01:47.4]}
33... Rc1 {[%clk 0:01:23.1]} 34. Nhf3 {[%clk 0:01:40.5]} 34... Be3 {[%clk
0:01:22.5]} 35. Rf1 {[%clk 0:01:34.8]} 35... b3 {[%clk 0:01:16.1]} 36. Rxc1
{[%clk 0:01:30.3]} 36... Rxc1 {[%clk 0:01:17]} 37. Qb2 {[%clk 0:01:30.5]} 37...
Rc3 {[%clk 0:01:00.9]} 38. Ng2 {[%clk 0:01:24.6]} 38... Bxd3 {[%clk 0:00:55.8]}
39. Nf4 {[%clk 0:01:23.7]} 39... Bxf4 {[%clk 0:00:52.8]} 40. Nxd4 {[%clk
0:01:16.6]} 40... Be4+ {[%clk 0:00:52.6]} 41. Kg1 {[%clk 0:01:07.8]} 41... Be3+
{[%clk 0:00:50.8]} 42. Kh2 {[%clk 0:01:07.6]} 42... Bxd4 {[%clk 0:00:51]} 0-1

[Event "Late-Titled-Tuesday-Blitz-January-23-2024"]
[Site "Chess.com"]
[Date "2024.01.23"]
[Round "4"]
[White "Bkmzzzzz"]
[Black "Harry_Rakkel"]
[Result "0-1"]
[WhiteElo "2416"]
[BlackElo "2698"]
[TimeControl "180+1"]
[EndTime "14:36:39 PST"]
[Termination "Harry_Rakkel won by resignation"]

1. e4 {[%clk 0:02:58.7]} 1... c6 {[%clk 0:02:59.2]} 2. d4 {[%clk 0:02:58.3]}
2... d5 {[%clk 0:02:59]} 3. Nc3 {[%clk 0:02:59]} 3... a6 {[%clk 0:02:51.5]} 4.
e5 {[%clk 0:02:47]} 4... Bf5 {[%clk 0:02:47.9]} 5. Bd3 {[%clk 0:02:46.4]} 5...
Bxd3 {[%clk 0:02:44.8]} 6. Qxd3 {[%clk 0:02:47.3]} 6... e6 {[%clk 0:02:44.1]} 7.
f4 {[%clk 0:02:46.9]} 7... c5 {[%clk 0:02:41.4]} 8. Nf3 {[%clk 0:02:43.2]} 8...
Nc6 {[%clk 0:02:34.9]} 9. O-O {[%clk 0:02:42.3]} 9... Nh6 {[%clk 0:02:30.9]} 10.
Ne2 {[%clk 0:02:29.2]} 10... cxd4 {[%clk 0:02:26.7]} 11. Nexd4 {[%clk
0:02:27.2]} 11... Rc8 {[%clk 0:02:18.4]} 12. c3 {[%clk 0:02:26.7]} 12... g6
{[%clk 0:02:06.9]} 13. Be3 {[%clk 0:02:22.3]} 13... Be7 {[%clk 0:02:02.1]} 14.
h3 {[%clk 0:02:19.8]} 14... Nf5 {[%clk 0:01:58.4]} 15. Nxf5 {[%clk 0:02:18.9]}
15... gxf5 {[%clk 0:01:58]} 16. Kh2 {[%clk 0:02:17.7]} 16... h5 {[%clk
0:01:54.8]} 17. g3 {[%clk 0:02:04.4]} 17... Na5 {[%clk 0:01:53.1]} 18. h4 {[%clk
0:01:58.4]} 18... Nc4 {[%clk 0:01:50.9]} 19. Bc1 {[%clk 0:01:27.5]} 19... Qc7
{[%clk 0:01:43.3]} 20. b3 {[%clk 0:01:26.1]} 20... Na5 {[%clk 0:01:39.6]} 21.
Bd2 {[%clk 0:01:25.6]} 21... Kf8 {[%clk 0:01:37]} 22. Rac1 {[%clk 0:01:21.1]}
22... Kg7 {[%clk 0:01:35.8]} 23. c4 {[%clk 0:01:09.6]} 23... dxc4 {[%clk
0:01:34.3]} 24. Bxa5 {[%clk 0:00:27.5]} 24... Qxa5 {[%clk 0:01:33.3]} 25. Rxc4
{[%clk 0:00:22.1]} 25... Qxa2+ {[%clk 0:01:30.2]} 26. Kh3 {[%clk 0:00:22.6]}
26... Rhd8 {[%clk 0:01:25.4]} 27. Qc3 {[%clk 0:00:21.7]} 27... Qe2 {[%clk
0:01:14]} 28. Rc1 {[%clk 0:00:17.2]} 28... Rxc4 {[%clk 0:01:11.9]} 29. bxc4
{[%clk 0:00:18.1]} 29... Rd3 {[%clk 0:01:10.9]} 30. Ng1 {[%clk 0:00:14]} 30...
Qg4+ {[%clk 0:01:10.4]} 0-1

[Event "Late-Titled-Tuesday-Blitz-January-23-2024"]
[Site "Chess.com"]
[Date "2024.01.23"]
[Round "4"]
[White "rdarruda"]
[Black "rychessmaster1"]
[Result "0-1"]
[WhiteElo "2539"]
[BlackElo "2731"]
[TimeControl "180+1"]
[EndTime "14:36:44 PST"]
[Termination "rychessmaster1 won by resignation"]

1. Nf3 {[%clk 0:02:55.4]} 1... d5 {[%clk 0:02:57]} 2. d4 {[%clk 0:02:55.3]} 2...
Nf6 {[%clk 0:02:55.9]} 3. c4 {[%clk 0:02:55.3]} 3... e6 {[%clk 0:02:56.1]} 4. e3
{[%clk 0:02:55.7]} 4... b6 {[%clk 0:02:53.9]} 5. Nc3 {[%clk 0:02:55.5]} 5... Bb7
{[%clk 0:02:46.9]} 6. Bd3 {[%clk 0:02:55.3]} 6... dxc4 {[%clk 0:02:46.3]} 7.
Bxc4 {[%clk 0:02:54.9]} 7... Be7 {[%clk 0:02:45.2]} 8. O-O {[%clk 0:02:54.8]}
8... O-O {[%clk 0:02:45.2]} 9. Qe2 {[%clk 0:02:55]} 9... c5 {[%clk 0:02:40.6]}
10. Rd1 {[%clk 0:02:54.3]} 10... Qc8 {[%clk 0:02:38.6]} 11. b3 {[%clk
0:02:50.2]} 11... Nbd7 {[%clk 0:02:21.3]} 12. Bb2 {[%clk 0:02:49.1]} 12... cxd4
{[%clk 0:02:13.2]} 13. exd4 {[%clk 0:02:34.5]} 13... Re8 {[%clk 0:02:00.6]} 14.
Rac1 {[%clk 0:02:32.9]} 14... Qb8 {[%clk 0:01:56.4]} 15. Ne5 {[%clk 0:02:30.6]}
15... Bd6 {[%clk 0:01:51.9]} 16. Nb5 {[%clk 0:02:25.7]} 16... a6 {[%clk
0:01:41]} 17. Nxd6 {[%clk 0:02:23.3]} 17... Qxd6 {[%clk 0:01:41.9]} 18. h3
{[%clk 0:02:14.3]} 18... b5 {[%clk 0:01:35.9]} 19. Bd3 {[%clk 0:02:13.8]} 19...
Rac8 {[%clk 0:01:36.2]} 20. Rxc8 {[%clk 0:01:58.3]} 20... Rxc8 {[%clk
0:01:37.1]} 21. Bb1 {[%clk 0:01:55.4]} 21... g6 {[%clk 0:01:32.1]} 22. Bc1
{[%clk 0:01:39]} 22... Nd5 {[%clk 0:01:20.2]} 23. Bd2 {[%clk 0:01:19.9]} 23...
Nc3 {[%clk 0:01:17.6]} 24. Bxc3 {[%clk 0:01:19.9]} 24... Rxc3 {[%clk 0:01:18.5]}
25. Be4 {[%clk 0:01:10.7]} 25... Bxe4 {[%clk 0:01:13.2]} 26. Qxe4 {[%clk
0:01:11.6]} 26... Nxe5 {[%clk 0:01:13.7]} 27. Qxe5 {[%clk 0:01:10.3]} 27... Qxe5
{[%clk 0:01:14.4]} 28. dxe5 {[%clk 0:01:10.9]} 28... Rc2 {[%clk 0:01:14.8]} 29.
b4 {[%clk 0:00:32.7]} 29... Rxa2 {[%clk 0:01:13.2]} 30. Rd8+ {[%clk 0:00:33.3]}
30... Kg7 {[%clk 0:01:13.4]} 31. Ra8 {[%clk 0:00:33.8]} 31... g5 {[%clk
0:01:12.1]} 32. g4 {[%clk 0:00:31.6]} 32... Ra4 {[%clk 0:00:57.1]} 33. Kg2
{[%clk 0:00:29.7]} 33... Rxb4 {[%clk 0:00:57.4]} 34. Rxa6 {[%clk 0:00:29.6]}
34... Re4 {[%clk 0:00:57.7]} 0-1

[Event "Late-Titled-Tuesday-Blitz-January-23-2024"]
[Site "Chess.com"]
[Date "2024.01.23"]
[Round "4"]
[White "Goryachkina"]
[Black "Inepton_Fermion"]
[Result "1-0"]
[WhiteElo "2701"]
[BlackElo "2455"]
[TimeControl "180+1"]
[EndTime "14:36:48 PST"]
[Termination "Goryachkina won on time"]

1. e4 {[%clk 0:02:59.9]} 1... e5 {[%clk 0:02:58.1]} 2. Nf3 {[%clk 0:02:59.4]}
2... Nc6 {[%clk 0:02:58.6]} 3. Nc3 {[%clk 0:02:59.1]} 3... Nf6 {[%clk
0:02:58.6]} 4. h3 {[%clk 0:02:59.3]} 4... Bb4 {[%clk 0:02:55.6]} 5. a3 {[%clk
0:02:58.9]} 5... Bxc3 {[%clk 0:02:55]} 6. dxc3 {[%clk 0:02:59.1]} 6... d5 {[%clk
0:02:55.6]} 7. Bb5 {[%clk 0:02:51.5]} 7... dxe4 {[%clk 0:02:42.8]} 8. Bxc6+
{[%clk 0:02:46.6]} 8... bxc6 {[%clk 0:02:40.2]} 9. Qxd8+ {[%clk 0:02:46.5]} 9...
Kxd8 {[%clk 0:02:41.1]} 10. Nxe5 {[%clk 0:02:46.7]} 10... Be6 {[%clk 0:02:29.7]}
11. Nxc6+ {[%clk 0:02:44.3]} 11... Kd7 {[%clk 0:02:29.6]} 12. Nd4 {[%clk
0:02:40.4]} 12... c5 {[%clk 0:02:29.8]} 13. Nxe6 {[%clk 0:02:37.1]} 13... Kxe6
{[%clk 0:02:30.7]} 14. Bd2 {[%clk 0:02:36.5]} 14... Rhd8 {[%clk 0:02:21.1]} 15.
O-O-O {[%clk 0:02:35.3]} 15... c4 {[%clk 0:02:04.5]} 16. Rhe1 {[%clk 0:02:32.4]}
16... Rd5 {[%clk 0:02:01.6]} 17. f3 {[%clk 0:02:25]} 17... Rad8 {[%clk
0:01:26.9]} 18. fxe4 {[%clk 0:02:19.9]} 18... Re5 {[%clk 0:01:26.9]} 19. Be3
{[%clk 0:02:19.1]} 19... Rxd1+ {[%clk 0:01:20.6]} 20. Kxd1 {[%clk 0:02:18.7]}
20... a6 {[%clk 0:01:14.9]} 21. Bd4 {[%clk 0:02:18.6]} 21... Rxe4 {[%clk
0:01:09.8]} 22. Rxe4+ {[%clk 0:02:03.6]} 22... Nxe4 {[%clk 0:01:09.2]} 23. Bxg7
{[%clk 0:02:03.8]} 23... Nc5 {[%clk 0:01:04.6]} 24. Bd4 {[%clk 0:01:59.8]} 24...
Ne4 {[%clk 0:00:51.7]} 25. Ke2 {[%clk 0:01:58.5]} 25... Kf5 {[%clk 0:00:52.3]}
26. b3 {[%clk 0:01:55.3]} 26... Nd6 {[%clk 0:00:50.4]} 27. Ke3 {[%clk
0:01:50.6]} 27... h5 {[%clk 0:00:40.2]} 28. a4 {[%clk 0:01:45.3]} 28... Ke6
{[%clk 0:00:37.7]} 29. Kf4 {[%clk 0:01:42.8]} 29... cxb3 {[%clk 0:00:27.6]} 30.
cxb3 {[%clk 0:01:42.5]} 30... Nf5 {[%clk 0:00:28.1]} 31. g4 {[%clk 0:01:36.2]}
31... hxg4 {[%clk 0:00:13.6]} 32. Kxg4 {[%clk 0:01:36.2]} 32... Nd6 {[%clk
0:00:10.8]} 33. h4 {[%clk 0:01:35.4]} 33... f5+ {[%clk 0:00:11.2]} 34. Kf4
{[%clk 0:01:25]} 1-0